Cogmind - Beta 16.1 @@@ ROGUE MODE // 2026.04.28 @ 11:11:46 Player: ChromeKnight Result: Destroyed by S-10 Pest with Light Assault Rifle Performance ------------- Evolutions (0) 0 Regions Visited (2) 400 Robots Destroyed (7) 35 Value Destroyed (195) 195 Prototype IDs (0) 0 Alien Tech Used (0) 0 Bonus (0) 0 TOTAL SCORE: 630 Bonus ------- None Cogmind --------- Core Integrity 0/250 Matter 278/300 Energy 100/100 System Corruption 0% Temperature Cool (0) Movement Treading (250) Ox1 Location -10/Subcaves Parts ------- > --- POWER (1) -------- (None) > --- PROPULSION (2) --- Light Treads Spiked Treads > --- UTILITY (2) ------ High-capacity Storage Unit Machine Analyzer > --- WEAPON (2) ------- Assault Rifle Light Assault Rifle > --- INVENTORY (20) --- Light Treads Small Storage Unit Subdweller Beam Cannon Datajack Peak State ------------ > --- POWER ------------ Light Ion Engine > --- PROPULSION ------- Light Treads Spiked Treads > --- UTILITY ---------- High-capacity Storage Unit Machine Analyzer > --- WEAPON ----------- Assault Rifle Light Assault Rifle > --- INVENTORY -------- Light Treads Small Storage Unit Datajack [Rating: 10] Favorites ----------- Power Light Ion Engine Engine Light Ion Engine Propulsion Light Treads Treads Light Treads Utility High-capacity Storage Unit Storage High-capacity Storage Unit Processor Machine Analyzer Weapon Light Assault Rifle Ballistic Gun Light Assault Rifle Launcher Grenade Launcher Build | -11 -10 -10 ------- Run | Yrd Mat Sub Slots Evolved . | . . . Power . | . . . Propulsion . | . . . Utility . | . . . Weapon . | . . . Parts Attached 10 | 6 1 3 Power 1 | 1 . . Engine 1 | 1 . . Core . | . . . Reactor . | . . . Propulsion 3 | 2 . 1 Treads 3 | 2 . 1 Leg . | . . . Wheel . | . . . Hover . | . . . Flight . | . . . Utility 3 | 1 1 1 Device . | . . . Storage 2 | 1 1 . Processor 1 | . . 1 Hackware . | . . . Protection . | . . . Artifact . | . . . Weapon 3 | 2 . 1 Energy Gun . | . . . Energy Cannon . | . . . Ballistic Gun 2 | 2 . . Ballistic Cannon . | . . . Launcher 1 | . . 1 Special Weapon . | . . . Impact Weapon . | . . . Slashing Weapon . | . . . Piercing Weapon . | . . . Special Melee Weapon . | . . . Unidentified Prototypes . | . . . Parts Lost 2 | . . 2 Power 1 | . . 1 Propulsion . | . . . Utility . | . . . Weapon 1 | . . 1 Highest Loss Streak 1 | . . 1 To Critical Strikes . | . . . Average Backups 2 | . 1 3 Power . | . . . Propulsion . | . . . Utility 1 | . . 1 Weapon . | . . . Tool/Special . | . . . Unused Backups 1 | . . 1 Power . | . . . Propulsion . | . . . Utility . | . . . Weapon . | . . . Tool/Special 1 | . . 1 Average Slot Usage (%) 85 | . 85 85 Engine 11 | . 14 9 Treads 28 | . 28 28 Storage 14 | . 14 14 Processor 3 | . . 5 Ballistic Gun 25 | . 28 24 Launcher 2 | . . 3 Peak Build Rating 10 | 6 7 10 Average Rating 6 | 4 6 7 On Entrance 4 | . 6 6 Avg Prop Armor Cover (%) . | . . . Naked Turns . | . . . Heaviest Build 47 | 11 46 47 Greatest Support 40 | 40 40 40 Greatest Overweight (x) 1 | . 1 1 Average Overweight (x) . | . . 1 Largest Inventory Capacity 20 | 8 20 20 Average Capacity 18 | 6 16 20 Most Carried 5 | . 3 5 Average Carried 2 | . 1 3 Final Capacity 20 | 8 20 20 Final Carried 4 | . 3 4 Class Distribution -------------------- 100% | Mutant Dominant Class ---------------- Mutant | -10/Materials Mutant | -10/Subcaves Resources | -11 -10 -10 ----------- Run | Yrd Mat Sub Matter Collected 434 | 227 . 207 Remotely . | . . . Salvage Created 216 | . 31 185 Parts 18 | . 3 15 Haulers Intercepted . | . . . Recyclers Shooed . | . . . Parts Field Recycled . | . . . Retrieved Matter . | . . . Parts Self-Destructed 18 | . . 18 Prevented . | . . . Parts Restored . | . . . Kills | -11 -10 -10 ------- Run | Yrd Mat Sub Combat Hostiles Destroyed 7 | . 2 5 Guns 4 | . 2 2 AOE 3 | . . 3 Classes Destroyed 3 | . 1 2 Swarmer 3 | . 2 1 Sentry 1 | . . 1 Subdweller 3 | . . 3 Best Kill Streak 2 | . 2 2 Combat Bots Only 2 | . 2 2 Max Kills in Single Turn 1 | . 1 1 Gunslinging . | . . . Exploded 1 | . . 1 Melee . | . . . Uniques/NPCs Destroyed . | . . . Combat | -11 -10 -10 -------- Run | Yrd Mat Sub Hostile Shots Fired 55 | . 19 36 Missed 18 | . 7 11 Hits 37 | . 12 25 Projectile 37 | . 12 25 Damage Taken 688 | . 200 488 Core 254 | . 91 163 Absorbed by Shields . | . . . Core Remaining (%) 100 | 100 . . Volleys Fired 29 | . 4 25 Largest 2 | . 2 2 Hottest 40 | . 40 40 Shots Fired 50 | . 8 42 Gun 42 | . 8 34 Cannon . | . . . Launcher 8 | . . 8 Special . | . . . Kinetic 42 | . 8 34 Thermal . | . . . Explosive 8 | . . 8 Electromagnetic . | . . . Robot Hit Streak 9 | . 2 9 Robot Miss Streak 2 | . 2 1 Penetration Max . | . . . Secondary Targets . | . . . Shots Hit Robots 26 | . 3 23 Core Hits 12 | . 2 10 Critical Kills . | . . . Critical Parts Destroyed . | . . . Critical Strikes . | . . . Melee Attacks . | . . . Impact . | . . . Slashing . | . . . Piercing . | . . . Sneak Attacks . | . . . Combat Hostiles . | . . . Follow-up Attacks . | . . . Damage Inflicted 485 | . 41 444 Guns 237 | . 32 205 Cannons . | . . . Explosions 239 | . . 239 Melee . | . . . Ramming 9 | . 9 . Kinetic 237 | . 32 205 Thermal . | . . . Explosive 239 | . . 239 Electromagnetic . | . . . Impact . | . . . Slashing . | . . . Piercing . | . . . Highest Corruption . | . . . Average Corruption . | . . . Corruption Purged . | . . . Corruption Blocked . | . . . Overload Shots . | . . . Overflow Damage . | . . . Projectiles . | . . . Explosions . | . . . Melee . | . . . Knockbacks 1 | . 1 . Impact 1 | . 1 . Kinetic . | . . . Secondary . | . . . Self-Inflicted Damage 34 | . . 34 Shots 1 | . . 1 Rammed 2 | . 2 . Targets Rammed 2 | . 2 . Kicked . | . . . Crushed . | . . . Highest Temperature . | . . . Average Temperature . | . . . Received Heat Transfer 87 | . 27 60 Siege Activations . | . . . Martial Activations . | . . . Shielding Activations . | . . . Robots Disrupted . | . . . Combat Hostiles . | . . . Robots Corrupted . | . . . Combat Hostiles . | . . . Parts Fried . | . . . Impact Corruptions . | . . . Robots Melted . | . . . Combat Hostiles . | . . . Parts Melted . | . . . Heat Transferred . | . . . Parts Sabotaged . | . . . Parts Stolen . | . . . Parts Stripped . | . . . Power Chain Reactions . | . . . Alert | -11 -10 -10 ------- Run | Yrd Mat Sub Maximum Alert Level . | . . . Low Security (%) 100 | 100 100 . Level 1 . | . . . Level 2 . | . . . Level 3 . | . . . Level 4 . | . . . Level 5 . | . . . High Security . | . . . Max Security . | . . . Peak Influence 40 | . 40 . Initial . | . . . Average 2 | . 3 . Influence Increases 86 | . 46 40 Destroy 0b10 Robot/C 80 | . 40 40 Successful Hack 6 | . 6 . Influence Decreases 86 | . 46 40 Time Decay 76 | . 46 30 Lost Part 10 | . . 10 Squads Dispatched . | . . . Investigation . | . . . Extermination . | . . . Reinforcement . | . . . Assault . | . . . Garrison . | . . . Intercept . | . . . Searches Triggered . | . . . Construction Impeded . | . . . Haulers Reinforced . | . . . Active Scanning Responses . | . . . Cargo Convoy Interrupts . | . . . Stealth | -11 -10 -10 --------- Run | Yrd Mat Sub Distress Signals . | . . . Communications Jammed . | . . . Distress Signals . | . . . Times Spotted 13 | . 6 7 Peak Tracking Total 4 | . 3 4 Tactical Retreats . | . . . Traps | -11 -10 -10 ------- Run | Yrd Mat Sub Traps Triggered . | . . . Indirectly . | . . . Trap Hack Attempts . | . . . Triggered . | . . . Disarmed . | . . . Reprogrammed . | . . . Reused . | . . . Traps Extracted . | . . . Installed . | . . . Triggered . | . . . Machines | -11 -10 -10 ---------- Run | Yrd Mat Sub Machines Disabled . | . . . Max in Single Turn . | . . . Machines Repaired . | . . . Machines Dismantled . | . . . Machines Sabotaged . | . . . Overloaded Fab Kills . | . . . Hacking | -11 -10 -10 --------- Run | Yrd Mat Sub Machines Accessed 2 | . 2 . Terminals 2 | . 2 . Fabricators . | . . . Repair Stations . | . . . Recycling Units . | . . . Scanalyzers . | . . . Garrison Access . | . . . Total Hacks 5 | . 5 . Successful 2 | . 2 . Failed 3 | . 3 . Catastrophic . | . . . Database Lockouts . | . . . Manual 5 | . 5 . Terminals 5 | . 5 . Fabricators . | . . . Repair Stations . | . . . Recycling Units . | . . . Scanalyzers . | . . . Garrison Access . | . . . Terminal Hacks 1 | . 1 . Robot Analysis 1 | . 1 . Fabricator Hacks . | . . . Repair Station Hacks . | . . . Recycling Unit Hacks . | . . . Scanalyzer . | . . . Garrison Access Hacks . | . . . Unauthorized Hacks 1 | . 1 . Terminals 1 | . 1 . Operators 1 | . 1 . Fabricators . | . . . Repair Stations . | . . . Recycling Units . | . . . Scanalyzers . | . . . Garrison Access . | . . . Data Cores Recovered . | . . . Used . | . . . Hacking Detections 2 | . 2 . Full Trace Events . | . . . Feedback Events . | . . . Feedback Blocked . | . . . Robot Schematics Acquired . | . . . Robots Built . | . . . Authchips . | . . . Time . | . . . Total Robot Build Rating . | . . . Part Schematics Acquired . | . . . Parts Built . | . . . Authchips . | . . . Time . | . . . Total Part Build Rating . | . . . Part Studies Acquired . | . . . Parts Repaired . | . . . Time . | . . . Parts Recycled . | . . . Recycled Matter . | . . . Retrieved Matter . | . . . Retrieved Components . | . . . Parts Scanalyzed . | . . . Part Schematics Acquired . | . . . Parts Damaged . | . . . Bothacking | -11 -10 -10 ------------ Run | Yrd Mat Sub Used RIF Installer . | . . . Robots Hacked . | . . . Non-combat . | . . . Combat . | . . . Robot Hacks Applied . | . . . Relay Couplers Released . | . . . Fabnet Peak Effective % . | . . . Robots Rewired . | . . . Allies Hacked . | . . . Hacks Repelled . | . . . Allies | -11 -10 -10 -------- Run | Yrd Mat Sub Total Allies . | . . . Largest Group . | . . . Highest-Rated Group . | . . . Highest-Rated Ally . | . . . Total Orders . | . . . Ally Attacks . | . . . Total Damage . | . . . Kills . | . . . Allies Corrupted . | . . . Allies Melted . | . . . Intel | -11 -10 -10 ------- Run | Yrd Mat Sub Active Infowar (turns) 353 | . . 353 Machine Analysis 353 | . . 353 Robot Analysis Total 1 | . 1 . Derelict Logs Recovered 1 | . . 1 Drone Launches . | . . . Drone Recoveries . | . . . Exploration | -11 -10 -10 ------------- Run | Yrd Mat Sub Turns Passed 1520 | 63 507 950 Spaces Moved 569 | 39 202 328 Core 7 | 7 . . Treads 562 | 32 202 328 Legs . | . . . Wheels . | . . . Hover . | . . . Flight . | . . . Fastest Speed 50 | 50 160 240 Average Speed 223 | 140 207 243 Slowest Speed 250 | 160 240 250 Overloaded Moves . | . . . Propulsion Burnouts . | . . . Robots Hopped . | . . . Potential Cave-ins . | . . . Cave-ins Triggered . | . . . Exploration Rate (%) 22 | 4 34 30 Regions Visited 2 Branch Regions 1 Pre-discovered Areas 1 | . . 1 Known Exits Taken . | . . . Unknown Exits Taken 2 | 1 1 . Scrap Searched . | . . . Spaces Dug . | . . . Terrain Destroyed 47 | . . 47 Melee . | . . . Projectile . | . . . AOE 47 | . . 47 Terrain Rammed . | . . . Walls Destroyed . | . . . Machines Disabled . | . . . Actions | -11 -10 -10 --------- Run | Yrd Mat Sub Total 764 | 44 281 439 Wait 147 | . 69 78 Move 568 | 38 202 328 Hop . | . . . Pick Up 6 | . 3 3 Fast Attach 6 | 6 . . Attach 4 | . 1 3 Detach 2 | . 1 1 Swap 1 | . . 1 Drop . | . . . Fire 29 | . 4 25 Melee . | . . . Ram . | . . . Kick . | . . . Crush 1 | . 1 . Escape Stasis . | . . . Rewire . | . . . Trap . | . . . Miscellaneous . | . . . Route ------- -11/Scrapyard -10/Materials (discovered 2 exits: [*Mat] / [*Sub]) -10/Subcaves History --------- Turn | Location | Event 38 | -11/Scrapyard | Discovered new exit (range 15) 64 | -11/Scrapyard | Entered Materials 315 | -10/Materials | Build established: Mutant 439 | -10/Materials | Discovered new exit (range 6) 557 | -10/Materials | Discovered new exit (range 5) 564 | -10/Materials | Derelicts attacked the area 571 | -10/Materials | Entered Subcaves 572 | -10/Subcaves | Approached by a straggling Scientist 893 | -10/Subcaves | Core integrity fell below 50% 970 | -10/Subcaves | Shifting Twisted Machinery released Spk. Treads 1005 | -10/Subcaves | Shifting Twisted Machinery released Shrapnel Trap 1023 | -10/Subcaves | Learned 8 Materials zone layouts 1038 | -10/Subcaves | Learned location of Zion (-6) 1038 | -10/Subcaves | Met a Zionite searching for "candidates" 1204 | -10/Subcaves | Core integrity fell below 20% 1521 | -10/Subcaves | Destroyed by S-10 Pest with Light Assault Rifle Last Messages --------------- repair. 01137_ Flight Unit fries itself beyond repair. 01142_ Y-45 Defender destroyed. 01150_ Lgt. Treads fries itself beyond repair. 01150_ Lgt. Armor Plating fries itself beyond repair. 01152_ Imp. Ion Engine fries itself beyond repair. 01152_ Acquired 53 matter. 01154_ Hvy. Assault Rifle fries itself beyond repair. 01155_ Lgt. Treads fries itself beyond repair. 01155_ Heat Sink fries itself beyond repair. 01156_ Beam Rifle fries itself beyond repair. 01196_ The unstable cave ceiling collapses. 01228_ Lgt. Ion Engine destroyed. 01231_ CB-N0X(R) destroyed. 01234_ Acquired 60 matter. 01239_ The unstable cave ceiling collapses. 01520_ Acquired Sub. Beam Cannon. Map ----- +----------------------------------------------------+ | ?????????????????????????????????????????????????? | | ?????????????????????????????????????????????????? | | ?????????????????????????????????????????????????? | | ?????????????????????????????????????????????????? | | ?????????????????????????????????????????????????? | | ?????????????????????????????????????????????????? | | ?????????????????????????????????????????????????? | | ?????????????????????????????????????????????????? | | ?????????????????????????????????????????????????? | | ?????????????????????????????????????????????????? | | ?????????????????????????????????????????????????? | | ?????????????????????????????????????????????????? | | ???????????????? ????????????????????????????????? | | ??????????????? #???????????????????????????????? | | ??????????????? ???????????????????????????????? | | ???????????????? ???????????????????????????????? | | ???????????????? #??????????????????????????????? | | ????????????????# ??????????????????????????????? | | ???????????????## ????????????###??""???????????? | | ????? ????????## #???????""" ## "???????????? | | ????# ????????# #???####""" ????????????? | | ????# ????????# #??## #""" ??????????????? | | ????# ???????# #### """" #????????????????? | | ????# ##??##### ## |%* #??????????????????? | | ????# #?## ## ## &% #???????????????????? | | ????# ### #?# @& #???????????????????? | | ???# ## ### # #???????????????????? | | #??# ## ## ## ## #???????????????????? | | ### ## ####?? #???????????????????? | | #????? s ??????????????????? | | ########?????? s ?????????????????? | | ##????????????? #????????????????? | | ##??#???????????? "#????????????????? | | ### ### #???????????? "#????????????????? | | #### #?????????????""#????????????????? | | ## #?????????????###????????????????? | | ## #????????????????????????????????? | | #????????????????????????????????? | | #?????????????????????????????? | | ### #?????????????????????????????? | | ## #??# #?????????????????????????????? | | #### #???# #?????????????????????????????? | | ##?# #??? ????????????????????????????? | | #?## ??? ???????????????????????????? | | #??## ??? ???????????????????????????? | | #???### ??????????????????????????????? | | ##?????# ?????????????????????????????? | | #??????# ##?????????????????????????????? | | ???????## ####??????????????????????????????? | | ????????? #?????????????????????????????????? | +----------------------------------------------------+ Best States ------------- Heat Dissipation 25 Energy Generation 10 Energy Capacity 125 Matter Stores 300 Matter Capacity 300 Sight Range 16 Terrain Scan Density 10 Evasion (%) 40 Recoil Reduction 2 Item Schematics ----------------- None Robot Schematics ------------------ None Fabricated ------------ Nothing Repaired ---------- Nothing Studied --------- None Alien Tech Used ----------------- None Achievements -------------- None Challenges ------------ None Game ------ Seed SeismicBorgFlightbrick Manual? 0 Play Time 00:06:12 Cumulative 604.4 hours Start 2026.04.28 @ 11:07:54 End 2026.04.28 @ 11:11:46 Sessions 1 Manual Loads 0 Difficulty Rogue Special Mode None Game No. 932 Rogue 777 Adventurer 148 Explorer 7 Win Type - Total 29 Types 21/1/4/1/0/0/1/0/0/1 Lore% 82 Gallery% 82 Achievement% 75 Wizard Run 0 Options --------- Layout 1 ASCII 0 Keyboard 0 Movement Numpad Keybinds 0 Fullscreen 2 Font 24/Smallcaps Map View 50x35 Zoom Use 0% Tactical HUD 1 Map Filters NONE Filters NONE Steam 1 RUN: c082fae2-8a39-440f-a3cd-542ca8608d6a